Cogmind - Beta 16 @@@ ROGUE MODE // 2025.12.04 @ 19:15:37 Player: DietSnapple Result: Destroyed by as-69140 with Assembled Heavy Rifle Performance ------------- Evolutions (0) 0 Regions Visited (2) 400 Robots Destroyed (28) 140 Value Destroyed (664) 664 Prototype IDs (2) 40 Alien Tech Used (0) 0 Bonus (0) 0 TOTAL SCORE: 1244 Bonus ------- None Cogmind --------- Core Integrity 0/250 Matter 263/300 Energy 100/100 System Corruption 4% Temperature Cool (0) Movement Core (200) Ox3 Location -10/Mines Parts ------- > --- POWER (1) -------- (None) > --- PROPULSION (2) --- (None) > --- UTILITY (2) ------ Medium Storage Unit Visual Processing Unit > --- WEAPON (2) ------- (None) > --- INVENTORY (10) --- Improved Ion Engine Improved Aluminum Leg Improved Aluminum Leg Wheel Compact Wheel Improved Heat Sink Small Storage Unit Huge Storage Unit Peak State ------------ > --- POWER ------------ Improved Ion Engine > --- PROPULSION ------- Improved Aluminum Leg Improved Aluminum Leg > --- UTILITY ---------- Medium Storage Unit Visual Processing Unit > --- WEAPON ----------- Improved EM Shotgun Improved EM Shotgun > --- INVENTORY -------- Improved Ion Engine Improved Ion Engine Aluminum Leg Aluminum Leg Wheel Compact Wheel Improved Heat Sink Small Storage Unit Huge Storage Unit Improved EM Shotgun [Rating: 16] Favorites ----------- Power Ion Engine Engine Ion Engine Propulsion Light Treads Treads Light Treads Leg Improved Aluminum Leg Utility Medium Storage Unit Device Seismic Detector Storage Medium Storage Unit Processor Visual Processing Unit Weapon Improved EM Shotgun Energy Gun Improved EM Shotgun Ballistic Gun Light Assault Rifle Build | -11 -10 -10 ------- Run | Yrd Mat Min Slots Evolved . | . . . Power . | . . . Propulsion . | . . . Utility . | . . . Weapon . | . . . Parts Attached 21 | 8 12 1 Power 3 | 1 2 . Engine 3 | 1 2 . Core . | . . . Reactor . | . . . Propulsion 6 | 2 4 . Treads 2 | 2 . . Leg 4 | . 4 . Wheel . | . . . Hover . | . . . Flight . | . . . Utility 5 | 2 3 . Device 1 | 1 . . Storage 3 | 1 2 . Processor 1 | . 1 . Hackware . | . . . Protection . | . . . Artifact . | . . . Weapon 7 | 3 3 1 Energy Gun 5 | 1 3 1 Energy Cannon . | . . . Ballistic Gun 2 | 2 . . Ballistic Cannon . | . . . Launcher . | . . . Special Weapon . | . . . Impact Weapon . | . . . Slashing Weapon . | . . . Piercing Weapon . | . . . Special Melee Weapon . | . . . Unidentified Prototypes . | . . . Parts Lost 10 | . 4 6 Power 1 | . . 1 Propulsion 4 | . 2 2 Utility 1 | . 1 . Weapon 4 | . 1 3 Highest Loss Streak 4 | . 2 4 To Critical Strikes . | . . . Average Backups 7 | 3 7 8 Power 1 | . 1 1 Propulsion 2 | 3 2 4 Utility 2 | . 2 3 Weapon . | . 1 . Tool/Special . | . . . Unused Backups 10 | . 4 6 Power 3 | . 2 1 Propulsion 6 | . 2 4 Utility 1 | . . 1 Weapon . | . . . Tool/Special . | . . . Average Slot Usage (%) 95 | . 97 83 Engine 13 | . 14 9 Treads 18 | . 21 . Leg 8 | . 5 23 Device 8 | . 9 . Storage 14 | . 14 14 Processor 3 | . 1 14 Energy Gun 24 | . 24 21 Ballistic Gun 3 | . 3 . Peak Build Rating 16 | 7 16 16 Average Rating 11 | 5 11 13 On Entrance 7 | . 7 16 Avg Prop Armor Cover (%) 11 | . 11 . Naked Turns . | . . . Heaviest Build 24 | 13 24 23 Greatest Support 40 | 40 40 26 Greatest Overweight (x) 6 | . 6 3 Average Overweight (x) . | . . . Largest Inventory Capacity 25 | 8 25 10 Average Capacity 9 | 7 9 10 Most Carried 10 | 5 10 9 Average Carried 7 | 3 7 8 Final Capacity 10 | 8 10 10 Final Carried 9 | 5 9 8 Class Distribution -------------------- 100% | Mutant Dominant Class ---------------- Mutant | -10/Materials Mutant | -10/Mines Resources | -11 -10 -10 ----------- Run | Yrd Mat Min Matter Collected 501 | 309 192 . Remotely . | . . . Salvage Created 970 | 153 817 . Parts 62 | 14 48 . Haulers Intercepted 1 | . 1 . Recyclers Shooed . | . . . Parts Field Recycled . | . . . Retrieved Matter . | . . . Parts Self-Destructed . | . . . Prevented . | . . . Parts Restored . | . . . Kills | -11 -10 -10 ------- Run | Yrd Mat Min Combat Hostiles Destroyed 15 | . 14 1 Guns 13 | . 12 1 AOE 2 | . 2 . Classes Destroyed 9 | 3 5 1 Worker 3 | 2 1 . Builder 1 | . 1 . Tunneler 5 | 4 1 . Hauler 1 | . 1 . Recycler 1 | 1 . . Operator 1 | . 1 . Watcher 1 | . 1 . Grunt 14 | . 14 . Demolisher 1 | . . 1 Best Kill Streak 3 | 2 3 1 Combat Bots Only 3 | . 3 1 Max Kills in Single Turn 2 | 1 2 1 Gunslinging . | . . . Exploded 1 | . 1 . Melee . | . . . Uniques/NPCs Destroyed . | . . . Combat | -11 -10 -10 -------- Run | Yrd Mat Min Hostile Shots Fired 79 | . 61 18 Missed 15 | . 15 . Hits 64 | . 46 18 Projectile 64 | . 46 18 AOE 14 | . . 14 Critical Strikes 1 | . 1 . Damage Taken 1294 | . 672 622 Core 259 | . 67 192 Absorbed by Shields . | . . . Core Remaining (%) 100 | 100 . . Volleys Fired 85 | 29 44 12 Largest 2 | 2 2 1 Hottest 90 | 40 90 45 Shots Fired 158 | 58 88 12 Gun 158 | 58 88 12 Cannon . | . . . Launcher . | . . . Special . | . . . Kinetic 84 | 58 26 . Thermal . | . . . Explosive . | . . . Electromagnetic 74 | . 62 12 Robot Hit Streak 11 | 7 11 6 Robot Miss Streak 6 | 2 6 5 Penetration Max . | . . . Secondary Targets 1 | . 1 . Max Gunslinging Chain 1 | . 1 . Shots Hit Robots 113 | 37 66 10 Core Hits 56 | 13 37 6 Critical Kills 1 | 1 . . Critical Parts Destroyed . | . . . Critical Strikes 1 | 1 . . Destroy 1 | 1 . . Melee Attacks . | . . . Impact . | . . . Slashing . | . . . Piercing . | . . . Sneak Attacks . | . . . Combat Hostiles . | . . . Follow-up Attacks . | . . . Damage Inflicted 1543 | 302 1098 143 Guns 1404 | 302 959 143 Cannons . | . . . Explosions 138 | . 138 . Melee . | . . . Ramming 1 | . 1 . Kinetic 432 | 302 130 . Thermal 138 | . 138 . Explosive . | . . . Electromagnetic 972 | . 829 143 Impact . | . . . Slashing . | . . . Piercing . | . . . Highest Corruption 4 | . 4 4 Average Corruption 3 | . 3 4 Corruption Purged . | . . . Corruption Blocked . | . . . Effects 16 | . 12 4 Message Errors 4 | . 4 . Matter Fused 4 | . 1 3 Heat Flow Errors 1 | . 1 . Energy Discharges 3 | . 2 1 Data Loss (minor) 3 | . 3 . Data Loss (major) 1 | . 1 . Overload Shots . | . . . Overflow Damage 3 | . 3 . Projectiles . | . . . Explosions 3 | . 3 . Melee . | . . . Knockbacks . | . . . Impact . | . . . Kinetic . | . . . Secondary . | . . . Self-Inflicted Damage 79 | . 79 . Shots 3 | . 3 . Rammed . | . . . Targets Rammed 1 | . 1 . Kicked . | . . . Crushed 1 | . 1 . Highest Temperature 180 | . 180 18 Average Temperature 51 | . 53 9 Received Heat Transfer 351 | . 351 . Siege Activations . | . . . Martial Activations . | . . . Shielding Activations . | . . . Robots Disrupted . | . . . Combat Hostiles . | . . . Robots Corrupted . | . . . Combat Hostiles . | . . . Parts Fried 1 | . 1 . Impact Corruptions . | . . . Robots Melted . | . . . Combat Hostiles . | . . . Parts Melted . | . . . Heat Transferred 200 | . 200 . Parts Sabotaged . | . . . Parts Stolen . | . . . Parts Stripped . | . . . Power Chain Reactions 3 | . 3 . Alert | -11 -10 -10 ------- Run | Yrd Mat Min Maximum Alert Level . | . . . Low Security (%) 100 | 100 100 100 Level 1 . | . . . Level 2 . | . . . Level 3 . | . . . Level 4 . | . . . Level 5 . | . . . High Security . | . . . Max Security . | . . . Peak Influence 112 | 5 112 20 Initial 3 | . . 3 Average 25 | . 33 . Influence Increases 522 | 35 467 20 Destroy 0b10 Robot/C 300 | . 280 20 Destroy 0b10 Robot/NC 65 | 35 30 . Destroy Leader 84 | . 84 . Successful Hack 15 | . 15 . Select Force Hacks 30 | . 30 . Destroy Structure 13 | . 13 . Lose Combat Pursuer 15 | . 15 . Influence Decreases 522 | 35 458 29 Entered New Map 6 | . . 6 Time Decay 466 | 35 428 3 Lost Part 50 | . 30 20 Squads Dispatched 4 | . 4 . Investigation 3 | . 3 . Extermination . | . . . Reinforcement 1 | . 1 . Assault . | . . . Garrison . | . . . Intercept . | . . . Searches Triggered . | . . . Construction Impeded . | . . . Haulers Reinforced . | . . . Active Scanning Responses . | . . . Cargo Convoy Interrupts . | . . . Stealth | -11 -10 -10 --------- Run | Yrd Mat Min Distress Signals 4 | . 4 . Communications Jammed . | . . . Distress Signals . | . . . Times Spotted 34 | . 29 5 Peak Tracking Total 4 | . 4 2 Tactical Retreats 1 | . 1 . Traps | -11 -10 -10 ------- Run | Yrd Mat Min Traps Triggered 3 | . 3 . Indirectly . | . . . Trap Hack Attempts . | . . . Triggered . | . . . Disarmed . | . . . Reprogrammed . | . . . Reused . | . . . Traps Extracted . | . . . Installed . | . . . Triggered . | . . . Machines | -11 -10 -10 ---------- Run | Yrd Mat Min Machines Disabled . | . . . Max in Single Turn . | . . . Machines Repaired . | . . . Machines Dismantled . | . . . Machines Sabotaged . | . . . Overloaded Fab Kills . | . . . Hacking | -11 -10 -10 --------- Run | Yrd Mat Min Machines Accessed 5 | . 5 . Terminals 4 | . 4 . Fabricators . | . . . Repair Stations . | . . . Recycling Units 1 | . 1 . Scanalyzers . | . . . Garrison Access . | . . . Total Hacks 12 | . 12 . Successful 8 | . 8 . Failed 4 | . 4 . Catastrophic 1 | . 1 . Database Lockouts . | . . . Manual 9 | . 9 . Terminals 11 | . 11 . Fabricators . | . . . Repair Stations . | . . . Recycling Units 1 | . 1 . Scanalyzers . | . . . Garrison Access . | . . . Terminal Hacks 3 | . 3 . Prototype ID Bank 1 | . 1 . Hauler Manifests 1 | . 1 . Registered Components 1 | . 1 . Fabricator Hacks . | . . . Repair Station Hacks . | . . . Recycling Unit Hacks . | . . . Scanalyzer . | . . . Garrison Access Hacks . | . . . Unauthorized Hacks 5 | . 5 . Terminals 4 | . 4 . Botnet 4 | . 4 . Fabricators . | . . . Repair Stations . | . . . Recycling Units 1 | . 1 . Tunnel 1 | . 1 . Scanalyzers . | . . . Garrison Access . | . . . Data Cores Recovered . | . . . Used . | . . . Hacking Detections 4 | . 4 . Full Trace Events 2 | . 2 . Feedback Events . | . . . Feedback Blocked . | . . . Robot Schematics Acquired . | . . . Robots Built . | . . . Authchips . | . . . Time . | . . . Total Robot Build Rating . | . . . Part Schematics Acquired . | . . . Parts Built . | . . . Authchips . | . . . Time . | . . . Total Part Build Rating . | . . . Part Studies Acquired . | . . . Parts Repaired . | . . . Time . | . . . Parts Recycled . | . . . Recycled Matter . | . . . Retrieved Matter . | . . . Retrieved Components . | . . . Parts Scanalyzed . | . . . Part Schematics Acquired . | . . . Parts Damaged . | . . . Bothacking | -11 -10 -10 ------------ Run | Yrd Mat Min Used RIF Installer . | . . . Robots Hacked . | . . . Non-combat . | . . . Combat . | . . . Robot Hacks Applied . | . . . Relay Couplers Released . | . . . Fabnet Peak Effective % . | . . . Robots Rewired . | . . . Allies Hacked . | . . . Hacks Repelled . | . . . Allies | -11 -10 -10 -------- Run | Yrd Mat Min Total Allies . | . . . Largest Group . | . . . Highest-Rated Group . | . . . Highest-Rated Ally . | . . . Total Orders . | . . . Ally Attacks . | . . . Total Damage . | . . . Kills . | . . . Allies Corrupted . | . . . Allies Melted . | . . . Intel | -11 -10 -10 ------- Run | Yrd Mat Min Active Infowar (turns) 1253 | 15 1048 190 Optics 362 | . 172 190 Seismic 891 | 15 876 . Robot Analysis Total . | . . . Derelict Logs Recovered 1 | . . 1 Drone Launches . | . . . Drone Recoveries . | . . . Exploration | -11 -10 -10 ------------- Run | Yrd Mat Min Turns Passed 1690 | 241 1259 190 Spaces Moved 846 | 98 614 134 Core 12 | 8 1 3 Treads 545 | 90 455 . Legs 289 | . 158 131 Wheels . | . . . Hover . | . . . Flight . | . . . Fastest Speed 50 | 50 120 120 Average Speed 160 | 151 170 121 Slowest Speed 350 | 160 350 200 Overloaded Moves . | . . . Propulsion Burnouts . | . . . Robots Hopped . | . . . Potential Cave-ins . | . . . Cave-ins Triggered . | . . . Exploration Rate (%) 35 | 6 54 47 Regions Visited 2 Branch Regions 1 Pre-discovered Areas 1 | . 1 . Known Exits Taken . | . . . Unknown Exits Taken 2 | 1 1 . Scrap Searched . | . . . Spaces Dug . | . . . Terrain Destroyed 11 | . 11 . Melee . | . . . Projectile . | . . . AOE 11 | . 11 . Terrain Rammed . | . . . Walls Destroyed . | . . . Machines Disabled . | . . . Actions | -11 -10 -10 --------- Run | Yrd Mat Min Total 1027 | 140 738 149 Wait 47 | . 45 2 Move 844 | 97 613 134 Hop . | . . . Pick Up 14 | 5 9 . Fast Attach 11 | 7 4 . Attach 4 | . 3 1 Detach . | . . . Swap 12 | 2 10 . Drop 9 | . 9 . Fire 85 | 29 44 12 Melee . | . . . Ram . | . . . Kick . | . . . Crush 1 | . 1 . Escape Stasis . | . . . Rewire . | . . . Trap . | . . . Miscellaneous . | . . . Route ------- -11/Scrapyard -10/Materials (discovered 2 exits: [*Mat] / [*Min]) -10/Mines History --------- Turn | Location | Event 47 | -11/Scrapyard | Discovered new exit (range 15) 242 | -11/Scrapyard | Entered Materials 305 | -10/Materials | Build established: Mutant 815 | -10/Materials | Discovered new exit (range 12) 956 | -10/Materials | Discovered new exit (range 10) 1501 | -10/Materials | Entered Mines 1577 | -10/Mines | Learned Materials terminal intel 1585 | -10/Mines | Assembled infested the area 1619 | -10/Mines | Core integrity fell below 50% 1633 | -10/Mines | Received a Rocket Launcher from a helpful Derelict 1634 | -10/Mines | Core integrity fell below 20% 1662 | -10/Mines | Lost 4 parts (1p1n2w) 1691 | -10/Mines | Destroyed by as-69140 with Assembled Heavy Rifle Last Messages --------------- 01629_ The unstable cave ceiling collapses. 01630_ 7Z-945(g): "Everyone knows a good old rocket launcher goes a long way." 01631_ 7Z-945(g): "Need to get rid of a swarm? Done. Need a big hole in the wall? Done." 01631_ The unstable cave ceiling collapses. 01631_ Imp. Aluminum Leg destroyed. 01632_ 7Z-945(g): "Need a small hole in the wall? Leave that to the mining laser wimps, I say!" 01633_ 7Z-945(g): "Would you like a rocket launcher? I know I would if I were you, so I'm going to lend you mine." 01633_ 7Z-945(g) slips back into the shadows. 01634_ The unstable cave ceiling collapses. 01638_ D-53 Grenadier destroyed. 01641_ The unstable cave ceiling collapses. 01641_ K-01 Serf collects debris. 01642_ The unstable cave ceiling collapses. 01645_ K-01 Serf collects debris. 01653_ The unstable cave ceiling collapses. 01658_ System corrupted: Matter fused (-5). 01659_ The unstable cave ceiling collapses. 01681_ Imp. Aluminum Leg destroyed. 01684_ Imp. EM Shotgun destroyed. Map ----- +----------------------------------------------------+ | ?????????????????????????????????## | | ????????????????????????????????## | | ????????????????????????????????# | | ????????????????????????????????# | | ????????????????????????????????# | | ???????????????????????????????## | | ???????????????????????????????# | | ??????????????????????????????## | | ?????????????????????????????## | | ????????????????????????????## # | | ????????????????????????????# # | | ????????????????????????????# # | | ????????????????????????????## # | | ??????????????????####???????## ] | | ?????????????????## ###??????# ! | | ?????####???????## ##?????# | | ????## ???????# #?????#[ | | ????? ??????## #?????## | | ????? ?????## #??????## | | ????? #?????# ##??????## | | ?????# #????## ##????### | | ?????# #????# ##??## | | ?????# #????# #### # | | ?????# #???## ## | | ?????# ##### ## # | | ?????# a @ ######## # | | ?????# ##??????## # | | ?????####### ##????????# # | | ???????????## ##?????????# | | ????????????####??????????# | | ??????????????????????????## ### | | ???????????????????????????######?? | | ??????????????????????????????????? | | ??????????????????????????????????? | | ??????????????????????????????????? | | | | | | | | | | | | | | | | | | | | | | | | | | | | | | | +----------------------------------------------------+ Best States ------------- Heat Dissipation 25 Energy Generation 12 Energy Capacity 265 Matter Stores 300 Matter Capacity 300 Sight Range 18 Terrain Scan Density 10 Evasion (%) 55 Recoil Reduction 2 Item Schematics ----------------- None Robot Schematics ------------------ None Fabricated ------------ Nothing Repaired ---------- Nothing Studied --------- None Alien Tech Used ----------------- None Achievements -------------- Spot Them First Challenges ------------ None Game ------ Seed RainbowSalvageRouter Manual? 0 Play Time 00:10:51 Cumulative 46.8 hours Start 2025.12.04 @ 17:37:51 End 2025.12.04 @ 19:15:37 Sessions 1 Manual Loads 0 Difficulty Rogue Special Mode None Game No. 110 Rogue 103 Adventurer 7 Explorer 0 Win Type - Total 1 Types 1/0/0/0/0/0/0/0/0/0 Lore% 25 Gallery% 35 Achievement% 23 Wizard Run 0 Options --------- Layout 0 ASCII 0 Keyboard 1 Movement Vi Keybinds 0 Fullscreen 1 Font 18/SmallcapsGlow Map View 112x50 Zoom Use 0% Tactical HUD 1 Map Filters NONE Filters NONE Steam X RUN: 9c740ade-fcc5-4422-8bee-31aa1a373390